fUSD/lending_fUSD_20240815
["ID","MTS","AMOUNT","RATE_DAILY","PERIOD"]
[334987922,1723711880245,-254.43,0.0002412,7]
[334987923,1723711880255,-500.0,0.0002412,7]
[334987924,1723711880264,-500.0,0.0002412,7]
[334987925,1723711880274,-500.0,0.0002412,7]
[334987926,1723711880283,-500.0,0.0002412,7]
[334987927,1723711880293,-500.0,0.0002412,7]
[334987928,1723711880302,-500.0,0.0002412,7]
[334987929,1723711880312,-500.0,0.0002412,7]
[334987930,1723711880322,-500.0,0.0002412,7]
[334987931,1723711880331,-500.0,0.0002412,7]
[334987932,1723711880342,-500.0,0.0002412,7]
[334987933,1723711880352,-500.0,0.0002412,7]
[334987934,1723711880362,-500.0,0.0002412,7]
[334987935,1723711880371,-500.0,0.0002412,7]
[334987936,1723711880380,-500.0,0.00024121,7]
[334987937,1723711880390,-500.0,0.00024121,7]
[334987938,1723711880400,-152.52939589,0.00024121,7]
[334987939,1723711880409,-500.0,0.00024121,7]
[334987940,1723711880419,-500.0,0.00024121,7]
[334987941,1723711880428,-500.0,0.00024121,7]
[334987942,1723711880438,-773.43,0.00024121,7]
[334987943,1723711880447,-500.0,0.00024121,7]
[334987944,1723711880458,-500.0,0.00024121,7]
[334987945,1723711880467,-500.0,0.00024121,7]
[334987946,1723711880476,-500.0,0.00024121,7]
[334987947,1723711880485,-150.0,0.00024121,7]
[334987948,1723711880494,-500.0,0.00024121,7]
[334987949,1723711880504,-500.0,0.00024121,7]
[334987950,1723711880514,-538.39,0.00024121,7]
[334987951,1723711880524,-500.0,0.00024121,7]
[334987952,1723711880533,-500.0,0.00024121,7]
[334987953,1723711880543,-500.0,0.00024121,7]
[334987954,1723711880552,-500.0,0.00024121,7]
[334987955,1723711880562,-500.0,0.00024121,7]
[334987956,1723711880571,-500.0,0.00024121,7]
[334987957,1723711880581,-500.0,0.00024121,7]
[334987958,1723711880590,-500.0,0.00024121,7]
[334987959,1723711880600,-573.48,0.00024121,7]
[334987960,1723711880609,-621.75,0.00024121,7]
[334987961,1723711880619,-500.0,0.00024121,7]
[334987962,1723711880628,-500.0,0.00024121,7]
[334987963,1723711880638,-500.0,0.00024121,7]
[334987964,1723711880647,-500.0,0.00024121,7]
[334987965,1723711880656,-555.53169305,0.00024121,7]
[334987966,1723711880667,-525.33879447,0.00024121,7]
[334987967,1723711880676,-500.0,0.00024121,7]
[334987968,1723711880685,-500.0,0.00024121,7]
[334987969,1723711880695,-500.0,0.00024121,7]
[334987970,1723711880705,-500.0,0.00024121,7]
[334987971,1723711880715,-500.0,0.00024121,7]
[334987972,1723711880725,-512.18,0.00024121,7]
[334987973,1723711880735,-500.0,0.00024121,7]
[334987974,1723711880744,-500.0,0.00024121,7]
[334987975,1723711880754,-500.0,0.00024121,7]
[334987976,1723711880763,-500.0,0.00024121,7]
[334987977,1723711880772,-500.0,0.00024121,7]
[334987978,1723711880783,-500.0,0.00024121,7]
[334987979,1723711880792,-602.77,0.00024121,7]
[334987980,1723711880802,-357.14245237,0.00024121,7]
[334987981,1723711880812,-500.0,0.00024121,7]
[334987982,1723711880822,-500.0,0.00024121,7]
[334987983,1723711880832,-500.0,0.00024121,7]
[334987984,1723711880842,-500.0,0.00024121,7]
[334987985,1723711880851,-500.0,0.00024121,7]
[334987986,1723711880861,-500.0,0.00024121,7]
[334987987,1723711880871,-500.0,0.00024121,7]
[334987988,1723711880880,-500.0,0.00024121,7]
[334987989,1723711880890,-531.94697347,0.00024121,7]
[334987990,1723711880900,-509.54,0.00024121,7]
[334987991,1723711880909,-500.0,0.00024121,7]
[334987992,1723711880919,-500.0,0.00024121,7]
[334987993,1723711880928,-498.77469714,0.00024121,7]
[334987994,1723711880938,-504.37,0.00024121,7]
[334987995,1723711880948,-498.27492489,0.00024121,7]
[334987996,1723711880960,-464.09066863,0.00024121,7]
[334987997,1723711880972,-500.0,0.00024121,7]
[334987998,1723711880982,-551.52,0.00024121,7]
[334987999,1723711880992,-500.0,0.00024121,7]
[334988000,1723711881003,-539.82,0.00024121,7]
[334988001,1723711881012,-1177.5,0.00024131,7]
[334988002,1723711881023,-500.0,0.00024131,7]
[334988003,1723711881033,-500.0,0.00024131,7]
[334988004,1723711881160,-500.0,0.00024131,7]
[334988005,1723711881172,-500.0,0.00024131,7]
[334988006,1723711881182,-1130.53,0.00024131,7]
[334988007,1723711881192,-500.0,0.00024131,7]
[334988008,1723711881201,-500.0,0.00024131,7]
[334988009,1723711881212,-500.0,0.00024131,7]
[334988010,1723711881221,-500.0,0.00024131,7]
[334988011,1723711881230,-957.44,0.00024131,7]
[334988012,1723711881240,-500.0,0.00024131,7]
[334988013,1723711881249,-4429.79,0.00024131,7]
[334988014,1723711881259,-1556.85,0.00024131,7]
[334988015,1723711881269,-3275.77,0.00024131,7]
[334988016,1723711881279,-500.0,0.00024131,7]
[334988017,1723711881288,-500.0,0.00024131,7]
[334988018,1723711881298,-500.0,0.00024131,7]
[334988019,1723711881307,-500.0,0.00024131,7]
[334988020,1723711881317,-500.0,0.00024131,7]
[334988021,1723711881327,-500.0,0.00024131,7]
[334988022,1723711881337,-595.14881823,0.00024131,7]
[334988023,1723711881346,-500.0,0.00024131,7]
[334988024,1723711881355,-1345.06,0.00024131,7]
[334988025,1723711881365,-500.0,0.00024131,7]
[334988026,1723711881375,-500.0,0.00024131,7]
[334988027,1723711881385,-500.0,0.00024131,7]
[334988028,1723711881394,-616.62,0.00024131,7]
[334988029,1723711881404,-500.0,0.00024131,7]
[334988030,1723711881414,-500.0,0.00024131,7]
[334988031,1723711881423,-500.0,0.00024131,7]
[334988032,1723711881433,-500.0,0.00024131,7]
[334988033,1723711881443,-500.0,0.00024131,7]
[334988034,1723711881454,-500.0,0.00024131,7]
[334988035,1723711881463,-523.0,0.00024131,7]
[334988036,1723711881472,-936.26,0.00024131,2]
[334988037,1723711881482,-738.9,0.00024131,7]
[334988038,1723711881491,-2954.81,0.00024131,7]
[334988039,1723711881501,-500.0,0.00024132,7]
[334988040,1723711881511,-300.0,0.00024132,7]
[334988041,1723711881521,-500.0,0.00024132,7]
[334988042,1723711881530,-616.38039384,0.00024132,7]
[334988043,1723711881539,-500.0,0.00024132,7]
[334988044,1723711881548,-515.9556396,0.00024132,7]
[334988045,1723711881558,-500.0,0.00024132,7]
[334988046,1723711881567,-509.62746735,0.00024132,7]
[334988047,1723711881576,-500.0,0.00024132,7]
[334988048,1723711881585,-511.88263006,0.00024132,7]
[334988049,1723711881595,-500.0,0.00024132,7]
[334988050,1723711881604,-500.0,0.00024132,7]
[334988051,1723711881613,-508.65100596,0.00024132,7]
[334988052,1723711881622,-500.0,0.00024132,7]
[334988053,1723711881632,-500.0,0.00024132,7]
[334988054,1723711881642,-500.0,0.00024132,7]
[334988055,1723711881651,-500.0,0.00024132,7]
[334988056,1723711881661,-500.0,0.00024132,7]
[334988057,1723711881671,-500.0,0.00024132,7]
[334988058,1723711881681,-500.0,0.00024132,7]
[334988059,1723711881691,-539.62390063,0.00024132,7]
[334988060,1723711881700,-504.47162107,0.00024132,7]
[334988061,1723711881711,-507.15873826,0.00024132,7]
[334988062,1723711881720,-500.0,0.00024132,7]
[334988063,1723711881731,-526.92861377,0.00024132,7]
[334988064,1723711881740,-500.0,0.00024132,7]
[334988065,1723711881749,-500.0,0.00024132,7]
[334988066,1723711881759,-500.0,0.00024132,7]
[334988067,1723711881768,-500.0,0.00024132,7]
[334988068,1723711881778,-500.0,0.00024132,7]
[334988069,1723711881787,-150.0,0.00024132,7]
[334988070,1723711881796,-500.0,0.00024132,7]
[334988071,1723711881807,-500.0,0.00024132,7]
[334988072,1723711881817,-5000.0,0.00024132,7]
[334988073,1723711881827,-500.0,0.00024132,7]
[334988074,1723711881837,-500.0,0.00024132,7]
[334988075,1723711881846,-500.0,0.00024132,7]
[334988076,1723711881855,-500.0,0.00024132,7]
[334988077,1723711881865,-656.48,0.00024132,7]
[334988078,1723711881875,-500.0,0.00024132,7]
[334988079,1723711881884,-505.4654677,0.00024132,7]
[334988080,1723711881893,-502.26102409,0.00024132,7]
[334988081,1723711881903,-500.0,0.00024132,7]
[334988082,1723711881912,-500.0,0.00024132,7]
[334988083,1723711881922,-513.23433833,0.00024132,7]
[334988084,1723711881932,-957.44,0.00024132,7]
[334988085,1723711881943,-1932.72085836,0.00024134,2]
[334988086,1723711881953,-199.39628358,0.00024138,2]
[334988087,1723711881962,-150.0,0.0002414,2]
[334988088,1723711881975,-901.76998133,0.00024141,2]
[334988089,1723711881985,-500.0,0.00024156,2]
[334988090,1723711881995,-164.14081487,0.00024162,2]
[334988091,1723711882004,-500.0,0.00024164,2]
[334988092,1723711882015,-3693.81384697,0.0002417,2]
[334988093,1723711882024,-155.0,0.00024173,2]
[334988094,1723711882034,-500.0,0.00024173,2]
[334988095,1723711882045,-715.45,0.00024175,7]
[334988096,1723711882058,-500.0,0.00024175,7]
[334988097,1723711882068,-612.48,0.00024175,7]
[334988098,1723711882078,-10330.39,0.00024175,7]
[334988099,1723711882088,-957.44,0.00024181,7]
[334988100,1723711882098,-957.44,0.00024181,7]
[334988101,1723711882108,-957.44,0.00024181,7]
[334988102,1723711882118,-957.44,0.00024181,7]
[334988103,1723711882128,-957.44,0.00024181,7]
[334988104,1723711882137,-957.5,0.00024181,7]
[334988105,1723711882147,-500.0,0.00024182,2]
[334988106,1723711882158,-619.04,0.00024185,7]
[334988107,1723711882168,-500.0,0.00024185,7]
[334988108,1723711882178,-567.81298263,0.00024185,7]
[334988109,1723711882188,-500.0,0.00024185,7]
[334988110,1723711882198,-500.0,0.00024185,7]
[334988111,1723711882209,-500.0,0.00024185,7]
[334988112,1723711882219,-500.0,0.00024185,7]
[334988113,1723711882228,-500.0,0.00024185,7]
[334988114,1723711882238,-500.0,0.00024185,7]
[334988115,1723711882248,-512.17,0.00024185,7]
[334988116,1723711882257,-1249.29,0.00024185,7]
[334988117,1723711882266,-603.18,0.00024185,7]
[334988118,1723711882276,-500.0,0.00024185,7]
[334988119,1723711882285,-1904.96,0.00024185,7]
[334988120,1723711882295,-500.0,0.00024185,7]
[334988121,1723711882305,-500.0,0.00024185,7]
[334988122,1723711882314,-500.0,0.00024185,7]
[334988123,1723711882323,-319.05281036,0.00024185,7]
[334988124,1723711882333,-500.0,0.00024185,7]
[334988125,1723711882342,-500.0,0.00024185,7]
[334988126,1723711882353,-1037.91,0.00024185,7]
[334988127,1723711882362,-876.52,0.00024185,7]
[334988128,1723711882371,-500.0,0.00024185,7]
[334988129,1723711882380,-500.0,0.00024185,7]
[334988130,1723711882390,-500.0,0.00024185,7]
[334988131,1723711882400,-525.26,0.00024185,7]
[334988132,1723711882410,-1853.62,0.00024185,7]
[334988133,1723711882419,-565.24,0.00024185,7]
[334988134,1723711882429,-500.0,0.00024185,7]
[334988135,1723711882439,-500.0,0.00024185,7]
[334988136,1723711882450,-452.88780246,0.00024185,7]
[334988137,1723711882468,-500.0,0.00024185,7]
[334988138,1723711882479,-642.51352179,0.00024185,7]
[334988139,1723711882488,-500.0,0.00024185,7]
[334988140,1723711882498,-500.0,0.00024185,7]
[334988141,1723711882507,-1809.24,0.00024185,7]
[334988142,1723711882517,-1019.67,0.00024185,7]
[334988143,1723711882527,-920.87,0.00024185,7]
[334988144,1723711882537,-500.0,0.00024185,7]
[334988145,1723711882547,-500.0,0.00024185,7]
[334988146,1723711882556,-706.73,0.00024185,7]
[334988147,1723711882566,-500.0,0.00024185,7]
[334988148,1723711882575,-500.0,0.00024191,2]
[334988149,1723711882585,-512.07083239,0.00024195,7]
[334988150,1723711882595,-300.0,0.00024195,7]
[334988151,1723711882604,-500.0,0.000242,2]
[334988152,1723711882614,-2025.49404849,0.00024201,2]
[334988153,1723711882624,-676.56219276,0.00024201,2]
[334988154,1723711882634,-500.0,0.00024208,2]
[334988155,1723711882643,-186.04530776,0.00024212,2]
[334988156,1723711882653,-157.16054442,0.00024212,2]
[334988157,1723711882664,-500.0,0.00024217,2]
[334988158,1723711882674,-900.0,0.0002422,2]
[334988159,1723711882688,-199.39628356,0.00024223,2]
[334988160,1723711882698,-901.76998133,0.00024224,2]
[334988161,1723711882709,-500.0,0.00024226,2]
[334988162,1723711882719,-500.0,0.00024228,2]
[334988163,1723711882728,-500.0,0.00024234,2]
[334988164,1723711882738,-500.0,0.00024235,2]
[334988165,1723711882747,-422.80537789,0.00024238,7]
[334988166,1723711882757,-500.0,0.00024238,7]
[334988167,1723711882767,-500.0,0.00024238,7]
[334988168,1723711882777,-500.0,0.00024238,7]
[334988169,1723711882787,-463.83641779,0.00024238,7]
[334988170,1723711882797,-773.43,0.00024238,7]
[334988171,1723711882806,-500.0,0.00024238,7]
[334988172,1723711882815,-500.0,0.00024238,7]
[334988173,1723711882825,-602.8633408,0.00024238,7]
[334988174,1723711882835,-500.0,0.00024238,7]
[334988175,1723711882846,-150.0,0.00024238,7]
[334988176,1723711882855,-500.0,0.00024238,7]
[334988177,1723711882865,-500.0,0.00024238,7]
[334988178,1723711882874,-538.39,0.00024238,7]
[334988179,1723711882884,-500.0,0.00024238,7]
[334988180,1723711882895,-500.0,0.00024238,7]
[334988181,1723711882905,-500.0,0.00024238,7]
[334988182,1723711882915,-546.31169112,0.00024238,7]
[334988183,1723711882924,-500.0,0.00024238,7]
[334988184,1723711882934,-500.0,0.00024238,7]
[334988185,1723711882944,-500.0,0.00024238,7]
[334988186,1723711882954,-573.48,0.00024238,7]
[334988187,1723711882963,-621.75,0.00024238,7]
[334988188,1723711882976,-605.67873349,0.00024238,7]
[334988189,1723711882986,-500.0,0.00024238,7]
[334988190,1723711882996,-236.59179537,0.00024238,7]
[334988191,1723711883005,-500.0,0.00024238,7]
[334988192,1723711883016,-500.0,0.00024238,7]
[334988193,1723711883027,-500.0,0.00024238,7]
[334988194,1723711883038,-500.0,0.00024238,7]
[334988195,1723711883049,-500.0,0.00024238,7]
[334988196,1723711883059,-500.0,0.00024238,7]
[334988197,1723711883069,-512.18,0.00024238,7]
[334988198,1723711883079,-500.0,0.00024238,7]
[334988199,1723711883089,-500.0,0.00024238,7]
[334988200,1723711883098,-500.0,0.00024238,7]
[334988201,1723711883107,-500.0,0.00024238,7]
[334988202,1723711883117,-500.0,0.00024238,7]
[334988203,1723711883127,-500.0,0.00024238,7]
[334988204,1723711883136,-602.77,0.00024238,7]
[334988205,1723711883146,-500.0,0.00024238,7]
[334988206,1723711883155,-500.0,0.00024238,7]
[334988207,1723711883165,-362.32706982,0.00024238,7]
[334988208,1723711883175,-500.0,0.00024238,7]
[334988209,1723711883184,-500.0,0.00024238,7]
[334988210,1723711883193,-500.0,0.00024238,7]
[334988211,1723711883203,-500.0,0.00024238,7]
[334988212,1723711883213,-500.0,0.00024238,7]
[334988213,1723711883222,-509.54,0.00024238,7]
[334988214,1723711883231,-500.0,0.00024238,7]
[334988215,1723711883241,-500.0,0.00024238,7]
[334988216,1723711883250,-504.37,0.00024238,7]
[334988217,1723711883260,-500.0,0.00024238,7]
[334988218,1723711883270,-551.52,0.00024238,7]
[334988219,1723711883280,-532.39248966,0.00024238,7]
[334988220,1723711883289,-539.82,0.00024238,7]
[334988221,1723711883299,-500.0,0.00024244,2]
[334988222,1723711883432,-500.0,0.00024252,2]
[334988223,1723711883443,-500.0,0.00024254,7]
[334988224,1723711883452,-500.0,0.00024254,7]
[334988225,1723711883464,-205.733608,0.00024254,7]
[334988226,1723711883473,-500.0,0.00024254,7]
[334988227,1723711883483,-500.0,0.00024254,7]
[334988228,1723711883493,-500.0,0.00024254,7]
[334988229,1723711883503,-500.0,0.00024254,7]
[334988230,1723711883513,-500.0,0.00024254,7]
[334988231,1723711883523,-500.0,0.00024254,7]
[334988232,1723711883533,-500.0,0.00024254,7]
[334988233,1723711883543,-500.0,0.00024254,7]
[334988234,1723711883552,-295.88976158,0.00024254,7]
[334988235,1723711883562,-316.45501434,0.00024254,7]
[334988236,1723711883572,-254.43,0.00024254,7]
[334988237,1723711883582,-500.0,0.00024254,7]
[334988238,1723711883591,-500.0,0.00024254,7]
[334988239,1723711883601,-500.0,0.00024254,7]
[334988240,1723711883610,-500.0,0.00024254,7]
[334988241,1723711883620,-500.0,0.00024254,7]
[334988242,1723711883630,-500.0,0.00024254,7]
[334988243,1723711883640,-500.0,0.00024254,7]
[334988244,1723711883649,-500.0,0.00024254,7]
[334988245,1723711883660,-500.0,0.00024254,7]
[334988246,1723711883670,-1764.72554699,0.00024254,2]
[334988247,1723711883680,-500.0,0.00024254,7]
[334988248,1723711883690,-500.0,0.00024254,7]
[334988249,1723711883699,-566.45165276,0.00024254,7]
[334988250,1723711883710,-500.0,0.00024261,2]
[334988251,1723711883720,-202.89545393,0.00024267,7]
[334988252,1723711883729,-500.0,0.0002427,2]
[334988253,1723711883739,-1177.5,0.00024272,7]
[334988254,1723711883748,-500.0,0.00024272,7]
[334988255,1723711883758,-500.0,0.00024272,7]
[334988256,1723711883768,-500.0,0.00024272,7]
[334988257,1723711883778,-500.0,0.00024272,7]
[334988258,1723711883787,-1130.53,0.00024272,7]
[334988259,1723711883796,-500.0,0.00024272,7]
[334988260,1723711883806,-500.0,0.00024272,7]
[334988261,1723711883816,-500.0,0.00024272,7]
[334988262,1723711883826,-500.0,0.00024272,7]
[334988263,1723711883836,-500.0,0.00024272,7]
[334988264,1723711883846,-4429.79,0.00024272,7]
[334988265,1723711883857,-1556.85,0.00024272,7]
[334988266,1723711883866,-500.0,0.00024272,7]
[334988267,1723711883875,-500.0,0.00024272,7]
[334988268,1723711883885,-500.0,0.00024272,7]
[334988269,1723711883894,-500.0,0.00024272,7]
[334988270,1723711883905,-500.0,0.00024272,7]
[334988271,1723711883915,-150.0,0.00024273,2]
[334988272,1723711883924,-500.0,0.00024279,2]
[334988273,1723711883934,-500.0,0.00024282,7]
[334988274,1723711883944,-221.48558712,0.00024282,7]
[334988275,1723711883954,-500.0,0.00024282,7]
[334988276,1723711883964,-773.43,0.00024282,7]
[334988277,1723711883978,-500.0,0.00024282,7]
[334988278,1723711883988,-500.0,0.00024282,7]
[334988279,1723711883998,-500.0,0.00024282,7]
[334988280,1723711884007,-150.0,0.00024282,7]
[334988281,1723711884017,-500.0,0.00024282,7]
[334988282,1723711884026,-500.0,0.00024282,7]
[334988283,1723711884036,-538.39,0.00024282,7]
[334988284,1723711884046,-500.0,0.00024282,7]
[334988285,1723711884057,-500.0,0.00024282,7]
[334988286,1723711884067,-500.0,0.00024282,7]
[334988287,1723711884077,-504.32957825,0.00024282,7]
[334988288,1723711884087,-509.1947676,0.00024282,7]
[334988289,1723711884097,-514.54728994,0.00024282,7]
[334988290,1723711884107,-573.48,0.00024282,7]
[334988291,1723711884116,-621.75,0.00024282,7]
[334988292,1723711884126,-518.20731037,0.00024282,7]
[334988293,1723711884136,-500.0,0.00024282,7]
[334988294,1723711884146,-500.0,0.00024282,7]
[334988295,1723711884156,-500.0,0.00024282,7]
[334988296,1723711884167,-500.0,0.00024282,7]
[334988297,1723711884176,-500.0,0.00024282,7]
[334988298,1723711884186,-512.18,0.00024282,7]
[334988299,1723711884196,-500.0,0.00024282,7]
[334988300,1723711884207,-500.0,0.00024282,7]
[334988301,1723711884216,-500.0,0.00024282,7]
[334988302,1723711884227,-153.63783852,0.00024282,7]
[334988303,1723711884239,-500.0,0.00024282,7]
[334988304,1723711884249,-500.0,0.00024282,7]
[334988305,1723711884259,-602.77,0.00024282,7]
[334988306,1723711884269,-500.0,0.00024282,7]
[334988307,1723711884280,-500.0,0.00024282,7]
[334988308,1723711884289,-500.0,0.00024282,7]
[334988309,1723711884299,-715.45,0.00024282,7]
[334988310,1723711884308,-500.0,0.00024282,7]
[334988311,1723711884318,-500.0,0.00024282,7]
[334988312,1723711884328,-500.0,0.00024282,7]
[334988313,1723711884338,-500.0,0.00024282,7]
[334988314,1723711884349,-487.88480234,0.00024282,7]
[334988315,1723711884360,-3275.77,0.00024282,7]
[334988316,1723711884370,-500.0,0.00024282,7]
[334988317,1723711884379,-500.0,0.00024282,7]
[334988318,1723711884389,-509.54,0.00024282,7]
[334988319,1723711884399,-612.48,0.00024282,7]
[334988320,1723711884409,-500.0,0.00024282,7]
[334988321,1723711884418,-500.0,0.00024282,7]
[334988322,1723711884427,-10330.39,0.00024282,7]
[334988323,1723711884437,-500.0,0.00024282,7]
[334988324,1723711884446,-500.0,0.00024282,7]
[334988325,1723711884456,-1345.06,0.00024282,7]
[334988326,1723711884465,-500.0,0.00024282,7]
[334988327,1723711884475,-500.0,0.00024282,7]
[334988328,1723711884485,-616.62,0.00024282,7]
[334988329,1723711884494,-500.0,0.00024282,7]
[334988330,1723711884503,-504.37,0.00024282,7]
[334988331,1723711884513,-500.0,0.00024282,7]
[334988332,1723711884523,-500.0,0.00024282,7]
[334988333,1723711884532,-500.0,0.00024282,7]
[334988334,1723711884542,-438.6074608,0.00024282,7]
[334988335,1723711884552,-523.0,0.00024282,7]
[334988336,1723711884561,-557.52638234,0.00024282,7]
[334988337,1723711884571,-551.52,0.00024282,7]
[334988338,1723711884581,-936.26,0.00024282,2]
[334988339,1723711884590,-738.9,0.00024282,7]
[334988340,1723711884600,-2954.81,0.00024282,7]
[334988341,1723711884609,-539.82,0.00024282,7]
[334988342,1723711884619,-60351.5303,0.00024283,2]
[334988343,1723711884628,-60005.3141,0.00024283,2]
[334988344,1723711884637,-1000.0,0.00024283,2]
[334988345,1723711884647,-500.0,0.00024293,2]
[334988346,1723711884656,-500.0,0.000243,2]
[334988347,1723711884668,-18025.02,0.000243,7]
[334988348,1723711884678,-626.77938752,0.000243,2]
[334988349,1723711884687,-300.0,0.000243,2]
[334988350,1723711884696,-186.04530776,0.00024307,2]
[334988351,1723711884705,-901.76998133,0.00024307,2]
[334988352,1723711884715,-199.39628356,0.00024307,2]
[334988353,1723711884724,-212.95511117,0.00024307,2]
[334988354,1723711884733,-3693.81384697,0.00024307,2]
[334988355,1723711884742,-1177.5,0.00024371,7]
[334988356,1723711884752,-381.40221155,0.00024371,7]
[334988357,1723711884762,-500.0,0.00024371,7]
[334988358,1723711884771,-500.0,0.00024371,7]
[334988359,1723711884780,-500.0,0.00024371,7]
[334988360,1723711884789,-1130.53,0.00024371,7]
[334988361,1723711884798,-500.0,0.00024371,7]
[334988362,1723711884807,-500.0,0.00024371,7]
[334988363,1723711884816,-500.0,0.00024371,7]
[334988364,1723711884826,-500.0,0.00024371,7]
[334988365,1723711884837,-500.0,0.00024371,7]
[334988366,1723711884847,-4429.79,0.00024371,7]
[334988367,1723711884856,-1556.85,0.00024371,7]
[334988368,1723711884866,-500.0,0.00024371,7]
[334988369,1723711884876,-500.0,0.00024371,7]
[334988370,1723711884885,-500.0,0.00024371,7]
[334988371,1723711884897,-500.0,0.00024371,7]
[334988372,1723711884907,-500.0,0.00024371,7]
[334988373,1723711884917,-150.0,0.00024373,2]
[334988374,1723711884926,-419.6,0.00024381,7]
[334988375,1723711884936,-500.0,0.00024381,7]
[334988376,1723711884946,-773.43,0.00024381,7]
[334988377,1723711884957,-507.09103228,0.00024381,7]
[334988378,1723711884966,-500.0,0.00024381,7]
[334988379,1723711884978,-512.68029514,0.00024381,7]
[334988380,1723711884989,-278.39680347,0.00024381,7]
[334988381,1723711885000,-500.0,0.00024381,7]
[334988382,1723711885010,-500.0,0.00024381,7]
[334988383,1723711885019,-538.39,0.00024381,7]
[334988384,1723711885029,-556.98242076,0.00024381,7]
[334988385,1723711885039,-500.0,0.00024381,7]
[334988386,1723711885049,-500.0,0.00024381,7]
[334988387,1723711885060,-573.48,0.00024381,7]
[334988388,1723711885069,-621.75,0.00024381,7]
[334988389,1723711885079,-500.0,0.00024381,7]
[334988390,1723711885088,-500.0,0.00024381,7]
[334988391,1723711885098,-500.0,0.00024381,7]
[334988392,1723711885107,-542.40568226,0.00024381,7]
[334988393,1723711885116,-500.0,0.00024381,7]
[334988394,1723711885126,-510.81647606,0.00024381,7]
[334988395,1723711885135,-512.18,0.00024381,7]
[334988396,1723711885145,-500.0,0.00024381,7]
[334988397,1723711885154,-576.48130221,0.00024381,7]
[334988398,1723711885164,-619.04,0.00024381,7]
[334988399,1723711885173,-500.0,0.00024381,7]
[334988400,1723711885183,-500.0,0.00024381,7]
[334988401,1723711885192,-500.0,0.00024381,7]
[334988402,1723711885201,-500.0,0.00024381,7]
[334988403,1723711885211,-500.0,0.00024381,7]
[334988404,1723711885220,-500.0,0.00024381,7]
[334988405,1723711885230,-362.11,0.00024381,7]
[334988406,1723711885240,-377.2,0.00024381,7]
[334988407,1723711885250,-500.0,0.00024381,7]
[334988408,1723711885259,-602.77,0.00024381,7]
[334988409,1723711885269,-500.0,0.00024381,7]
[334988410,1723711885278,-500.0,0.00024381,7]
[334988411,1723711885287,-500.0,0.00024381,7]
[334988412,1723711885297,-500.0,0.00024381,7]
[334988413,1723711885306,-241.72,0.00024381,7]
[334988414,1723711885315,-500.0,0.00024381,7]
[334988415,1723711885324,-317.7136324,0.00024381,7]
[334988416,1723711885334,-500.0,0.00024381,7]
[334988417,1723711885343,-715.45,0.00024381,7]
[334988418,1723711885352,-500.0,0.00024381,7]
[334988419,1723711885362,-500.0,0.00024381,7]
[334988420,1723711885371,-500.0,0.00024381,7]
[334988421,1723711885380,-500.0,0.00024381,7]